[Event "EYCC Open-U14 2019"]
[Site "Bratislava"]
[Date "2019.08.04"]
[Round "3.32"]
[White "Dahl, Max"]
[Black "Czernek, Tymon"]
[Result "1/2-1/2"]
[ECO "A45"]
[WhiteElo "1981"]
[BlackElo "2003"]
[Annotator "NA"]
[PlyCount "95"]
[EventDate "2019.08.02"]
[EventType "swiss"]
[EventCountry "SVK"]
[SourceTitle "playchess.com"]
[Source "ChessBase"]
[SourceQuality "1"]
[TimeControl "40/5400+30:1800+30"]

1. d4 {[%emt 0:00:04]} Nf6 {[%emt 0:00:00]} 2. Bg5 {[%emt 0:01:16]} Ne4 {[%emt 0:02:12]} 3. Bf4 {[%emt 0:00:11]} d5 {[%emt 0:00:34]} 4. e3 {[%emt 0:01:24]} c5 {[%emt 0:06:02]} 5. Nd2 {[%emt 0:03:52]} Nxd2 {[%emt 0:05:25]} 6. Qxd2 {[%emt 0:00:07]} Nc6 {[%emt 0:00:06]} 7. Nf3 {[%emt 0:03:00]} g6 {[%emt 0:02:02]} 8. c3 {[%emt 0:02:24]} Bg7 {[%emt 0:02:44]} 9. Bd3 {[%emt 0:04:13]} a6 {[%emt 0:03:33]} 10. Bg3 {[%emt 0:12:00]} Bg4 {[%emt 0:04:01]} 11. Be2 {[%emt 0:07:16]} Rc8 {[%emt 0:05:23]} 12. Ne5 {[%emt 0:05:30]} Bxe2 {[%emt 0:01:32]} 13. Nxc6 {[%emt 0:02:01]} Rxc6 {[%emt 0:01:14]} 14. Qxe2 {[%emt 0:00:08]} cxd4 {[%emt 0:00:33]} 15. cxd4 {[%emt 0:01:45]} Qc8 {[%emt 0:07:19]} 16. O-O {[%emt 0:01:05]} Rc2 {[%emt 0:00:47]} 17. Qd3 {[%emt 0:07:17]} O-O {[%emt 0:00:46]} 18. Qa3 {[%emt 0:01:42]} Bf6 {[%emt 0:03:27]} 19. b3 {[%emt 0:09:04]} Qc3 {[%emt 0:00:40]} 20. Rac1 {[%emt 0:01:56]} Rc8 {[%emt 0:00:22]} 21. Rxc2 {[%emt 0:00:20]} Qxc2 {[%emt 0:00:04]} 22. Qa5 {[%emt 0:00:22]} e6 {[%emt 0:11:48]} 23. Qb6 {[%emt 0:04:29]} Qc6 {[%emt 0:00:40]} 24. Qxc6 {[%emt 0:03:40]} Rxc6 {[%emt 0:00:03]} 25. Rb1 {[%emt 0:04:56]} Be7 {[%emt 0:01:15]} 26. Kf1 {[%emt 0:01:33]} Bb4 {[%emt 0:00:45]} 27. a4 {[%emt 0:04:54]} Rc2 {[%emt 0:00:34]} 28. Be5 {[%emt 0:02:25]} f5 {[%emt 0:01:58]} 29. h3 {[%emt 0:01:16]} h5 {[%emt 0:00:33]} 30. h4 {[%emt 0:02:46]} Kf7 {[%emt 0:00:29]} 31. g3 {[%emt 0:00:23]} Ke7 {[%emt 0:00:46]} 32. Kg2 {[%emt 0:00:51]} Bd6 {[%emt 0:07:53]} 33. Kf3 {[%emt 0:02:09]} Bxe5 {[%emt 0:02:18]} 34. dxe5 {[%emt 0:00:03]} b6 {[%emt 0:00:11]} 35. Rd1 {[%emt 0:05:20]} g5 {[%emt 0:04:45]} 36. hxg5 {[%emt 0:00:47]} Kf7 {[%emt 0:00:03]} 37. Rd4 {[%emt 0:01:09]} a5 {[%emt 0:00:21]} 38. b4 {[%emt 0:01:24]} Ra2 {[%emt 0:00:42]} 39. bxa5 {[%emt 0:00:40]} bxa5 {[%emt 0:00:03]} 40. Rf4 {[%emt 0:00:00]} Kg6 {[%emt 0:00:00]} 41. Rd4 {[%emt 0:04:22]} Kxg5 {[%emt 0:00:32]} 42. Rf4 {[%emt 0:00:44]} Rd2 {[%emt 0:03:08]} 43. Rh4 {[%emt 0:03:32]} Rb2 {[%emt 0:02:56]} 44. Rf4 {[%emt 0:07:12]} Ra2 {[%emt 0:00:14]} 45. Rh4 {[%emt 0:00:32]} Kg6 {[%emt 0:00:28]} 46. Rf4 {[%emt 0:03:45]} Kf7 {[%emt 0:00:33]} 47. Kg2 {[%emt 0:01:33]} Kg6 {[%emt 0:01:56]} 48. Kf3 {[%emt 0:00:41]} 1/2-1/2

[Event "EYCC Open-U14 2019"]
[Site "Bratislava"]
[Date "2019.08.04"]
[Round "3.33"]
[White "Tabuenca Mendataurigoitia, Pedro"]
[Black "Krupa, Miroslav"]
[Result "0-1"]
[ECO "B23"]
[WhiteElo "1839"]
[BlackElo "2114"]
[Annotator "NA"]
[PlyCount "102"]
[EventDate "2019.08.02"]
[EventType "swiss"]
[EventCountry "SVK"]
[SourceTitle "playchess.com"]
[Source "ChessBase"]
[SourceQuality "1"]
[TimeControl "40/5400+30:1800+30"]

1. e4 {[%emt 0:00:00]} c5 {[%emt 0:00:00]} 2. Nc3 {[%emt 0:00:00]} d6 {[%emt 0:00:00]} 3. d4 {[%emt 0:00:00]} cxd4 {[%emt 0:00:22]} 4. Qxd4 {[%emt 0:00:03]} Nc6 {[%emt 0:12:37]} 5. Qd2 {[%emt 0:01:26]} Nf6 {[%emt 0:01:01]} 6. b3 {[%emt 0:00:20]} g6 {[%emt 0:03:34]} 7. Bb2 {[%emt 0:00:20]} Bg7 {[%emt 0:00:05]} 8. O-O-O {[%emt 0:00:18]} O-O {[%emt 0:02:14]} 9. f3 {[%emt 0:00:58]} a6 {[%emt 0:12:59]} 10. g4 {[%emt 0:01:59]} b5 {[%emt 0:02:32]} 11. h4 {[%emt 0:02:36]} Qa5 {[%emt 0:25:09]} 12. Kb1 {[%emt 0:04:20]} Rd8 {[%emt 0:07:04]} 13. h5 {[%emt 0:05:16]} d5 {[%emt 0:12:31]} 14. hxg6 {[%emt 0:25:59]} fxg6 {[%emt 0:06:44]} 15. Nxd5 {[%emt 0:19:26]} Nxd5 {[%emt 0:03:31]} 16. exd5 {[%emt 0:00:06]} Nb4 {[%emt 0:02:26]} 17. a3 {[%emt 0:00:44]} Rxd5 {[%emt 0:00:28]} 18. Qe2 {[%emt 0:00:32]} Bxb2 {[%emt 0:04:00]} 19. Kxb2 Qd8 {[%emt 0:00:04]} 20. Rxd5 {[%emt 0:05:10]} Nxd5 {[%emt 0:00:05]} 21. Qe4 {[%emt 0:00:21]} Qd6 {[%emt 0:01:14]} 22. Bd3 {[%emt 0:02:16]} Qf6+ {[%emt 0:01:17]} 23. Kc1 {[%emt 0:00:21]} Qg5+ {[%emt 0:00:33]} 24. Kb2 {[%emt 0:00:44]} Qf6+ {[%emt 0:00:07]} 25. Kc1 {[%emt 0:00:06]} Qf4+ {[%emt 0:00:57]} 26. Qxf4 {[%emt 0:03:28]} Nxf4 {[%emt 0:00:04]} 27. Be4 {[%emt 0:00:02]} Rb8 {[%emt 0:00:34]} 28. Nh3 {[%emt 0:00:58]} Ne2+ {[%emt 0:00:26]} 29. Kd2 {[%emt 0:00:02]} Ng3 {[%emt 0:00:06]} 30. Re1 {[%emt 0:01:13]} Nxe4+ {[%emt 0:00:19]} 31. Rxe4 {[%emt 0:00:02]} Bb7 {[%emt 0:00:30]} 32. Rxe7 {[%emt 0:00:37]} Bxf3 {[%emt 0:00:06]} 33. g5 {[%emt 0:01:55]} Rb7 {[%emt 0:00:31]} 34. Rxb7 {[%emt 0:01:06]} Bxb7 {[%emt 0:00:04]} 35. Ke3 {[%emt 0:00:42]} Kg7 {[%emt 0:00:09]} 36. Kf4 {[%emt 0:00:57]} h5 {[%emt 0:02:31]} 37. Ke5 {[%emt 0:01:45]} Kf7 {[%emt 0:00:27]} 38. Kd6 {[%emt 0:00:05]} h4 {[%emt 0:00:13]} 39. c4 {[%emt 0:00:41]} bxc4 40. bxc4 {[%emt 0:00:00]} Bg2 {[%emt 0:00:00]} 41. Nf2 {[%emt 0:00:08]} h3 {[%emt 0:01:40]} 42. Ng4 {[%emt 0:01:00]} Ke8 {[%emt 0:06:50]} 43. c5 {[%emt 0:02:06]} Kd8 {[%emt 0:01:19]} 44. c6 {[%emt 0:02:06]} Bf3 {[%emt 0:00:47]} 45. c7+ {[%emt 0:00:18]} Kc8 {[%emt 0:00:05]} 46. Ne5 {[%emt 0:00:03]} h2 {[%emt 0:02:16]} 47. Nxg6 {[%emt 0:00:32]} Bg4 {[%emt 0:00:54]} 48. Ne7+ {[%emt 0:01:08]} Kb7 {[%emt 0:00:05]} 49. g6 {[%emt 0:00:12]} h1=Q {[%emt 0:00:06]} 50. g7 {[%emt 0:00:04]} Qh6+ {[%emt 0:00:09]} 51. Ke5 {[%emt 0:00:02]} Qxg7+ {[%emt 0:00:10] Kd4} 0-1

[Event "EYCC Open-U14 2019"]
[Site "Bratislava"]
[Date "2019.08.04"]
[Round "3.34"]
[White "Vanduyfhuys, Igor"]
[Black "Sobek, Michal"]
[Result "1-0"]
[ECO "B34"]
[WhiteElo "1804"]
[BlackElo "2101"]
[Annotator "NA"]
[PlyCount "67"]
[EventDate "2019.08.02"]
[EventType "swiss"]
[EventCountry "SVK"]
[SourceTitle "playchess.com"]
[Source "ChessBase"]
[SourceQuality "1"]
[TimeControl "40/5400+30:1800+30"]

1. e4 {[%emt 0:00:00]} c5 {[%emt 0:00:00]} 2. Nf3 {[%emt 0:00:00]} Nc6 {[%emt 0:00:00]} 3. d4 {[%emt 0:00:01]} cxd4 {[%emt 0:00:00]} 4. Nxd4 {[%emt 0:00:17]} g6 {[%emt 0:00:09]} 5. Nc3 {[%emt 0:00:16]} Bg7 {[%emt 0:00:10]} 6. Nb3 {[%emt 0:01:09]} Nf6 {[%emt 0:00:42]} 7. Be2 {[%emt 0:00:18]} O-O {[%emt 0:00:56]} 8. O-O {[%emt 0:00:41]} a5 {[%emt 0:00:48]} 9. a4 {[%emt 0:00:29]} d6 {[%emt 0:01:34]} 10. Bg5 {[%emt 0:01:20]} Be6 {[%emt 0:02:40]} 11. f4 {[%emt 0:01:52]} Qb6+ {[%emt 0:32:08]} 12. Kh1 {[%emt 0:01:09]} h6 {[%emt 0:02:42]} 13. Bh4 {[%emt 0:02:43]} Qb4 {[%emt 0:02:27]} 14. Bf3 {[%emt 0:11:18]} Bxb3 {[%emt 0:19:19]} 15. cxb3 {[%emt 0:00:11]} Nd4 {[%emt 0:01:03]} 16. Bxf6 {[%emt 0:06:48]} Bxf6 {[%emt 0:01:48]} 17. Nd5 {[%emt 0:00:08]} Qc5 {[%emt 0:00:15]} 18. Rc1 {[%emt 0:00:32]} Qa7 {[%emt 0:00:36]} 19. Qd3 {[%emt 0:02:35]} Nxf3 {[%emt 0:03:16]} 20. Nxf6+ {[%emt 0:00:16]} exf6 {[%emt 0:00:06]} 21. gxf3 {[%emt 0:00:11]} Rac8 {[%emt 0:04:21]} 22. Qxd6 {[%emt 0:02:44]} Qe3 {[%emt 0:03:20]} 23. Rce1 {[%emt 0:03:52]} Qxb3 {[%emt 0:00:11]} 24. Qxf6 {[%emt 0:00:13]} Qxa4 {[%emt 0:03:06]} 25. Rg1 {[%emt 0:04:02]} Rc6 {[%emt 0:02:39]} 26. Qe5 {[%emt 0:01:45]} Qb3 {[%emt 0:01:26]} 27. Ref1 {[%emt 0:02:59]} Rc2 {[%emt 0:01:06]} 28. f5 {[%emt 0:02:26]} Kh7 {[%emt 0:03:00]} 29. Qe7 {[%emt 0:03:52]} Rg8 {[%emt 0:01:30]} 30. fxg6+ {[%emt 0:00:07]} Rxg6 {[%emt 0:00:04]} 31. Rxg6 {[%emt 0:00:06]} Kxg6 {[%emt 0:01:58]} 32. Rg1+ {[%emt 0:00:06]} Kh7 {[%emt 0:00:08]} 33. Qf6 {[%emt 0:00:07]} Qxb2 {[%emt 0:03:19]} 34. Rg7+ {[%emt 0:00:07]} 1-0

[Event "EYCC Open-U14 2019"]
[Site "Bratislava"]
[Date "2019.08.04"]
[Round "3.35"]
[White "Briem, Benedikt"]
[Black "Pasztor, Balazs"]
[Result "0-1"]
[ECO "D25"]
[WhiteElo "1901"]
[BlackElo "2140"]
[Annotator "NA"]
[PlyCount "112"]
[EventDate "2019.08.02"]
[EventType "swiss"]
[EventCountry "SVK"]
[SourceTitle "playchess.com"]
[Source "ChessBase"]
[SourceQuality "1"]
[TimeControl "40/5400+30:1800+30"]

1. d4 {[%emt 0:00:00]} d5 {[%emt 0:00:00]} 2. c4 {[%emt 0:00:00]} dxc4 {[%emt 0:00:05]} 3. Nf3 {[%emt 0:00:46]} Nf6 {[%emt 0:00:25]} 4. e3 {[%emt 0:00:21]} a6 {[%emt 0:00:50]} 5. Bxc4 {[%emt 0:00:27]} e6 {[%emt 0:00:20]} 6. O-O {[%emt 0:00:10]} b5 {[%emt 0:00:34]} 7. Be2 {[%emt 0:00:16]} Bb7 {[%emt 0:00:37]} 8. a4 {[%emt 0:01:37]} b4 {[%emt 0:00:15]} 9. Nbd2 {[%emt 0:03:26]} Nbd7 {[%emt 0:01:57]} 10. Nc4 {[%emt 0:01:11]} Be7 {[%emt 0:01:36]} 11. Nfe5 {[%emt 0:02:19]} c5 {[%emt 0:10:59]} 12. Bf3 {[%emt 0:05:44]} Bd5 {[%emt 0:08:48]} 13. Re1 {[%emt 0:16:25]} cxd4 {[%emt 0:08:48]} 14. Bxd5 Nxd5 {[%emt 0:07:58]} 15. Qf3 {[%emt 0:32:02]} Nxe5 {[%emt 0:04:26]} 16. Nxe5 {[%emt 0:04:00]} O-O {[%emt 0:00:56]} 17. Nc6 {[%emt 0:03:31]} Qb6 {[%emt 0:05:17]} 18. Nxd4 {[%emt 0:09:30]} Rac8 {[%emt 0:15:06]} 19. e4 {[%emt 0:04:13]} Qxd4 {[%emt 0:02:58]} 20. exd5 {[%emt 0:00:32]} Bc5 {[%emt 0:05:11]} 21. dxe6 {[%emt 0:04:21]} fxe6 {[%emt 0:00:53]} 22. Qe3 {[%emt 0:00:28]} Qf6 {[%emt 0:04:38]} 23. Qxe6+ {[%emt 0:00:59]} Qxe6 {[%emt 0:00:07]} 24. Rxe6 {[%emt 0:00:05]} Rxf2 {[%emt 0:01:20]} 25. Be3 {[%emt 0:00:08]} Re2 {[%emt 0:01:15]} 26. Bxc5 {[%emt 0:01:03]} Rxe6 {[%emt 0:00:08]} 27. Bxb4 {[%emt 0:01:09]} Rc2 {[%emt 0:01:27]} 28. Rf1 {[%emt 0:02:12]} h6 {[%emt 0:01:12]} 29. Rf2 {[%emt 0:00:39]} Rxf2 {[%emt 0:01:50]} 30. Kxf2 {[%emt 0:00:04]} Re4 {[%emt 0:00:11]} 31. Bc5 {[%emt 0:00:41]} Rxa4 {[%emt 0:00:32]} 32. b4 {[%emt 0:00:12]} Ra3 {[%emt 0:01:19]} 33. h4 {[%emt 0:00:48]} h5 {[%emt 0:00:48]} 34. Be3 {[%emt 0:02:50]} Kf7 {[%emt 0:00:53]} 35. Ke2 {[%emt 0:01:59]} Ke6 {[%emt 0:00:17]} 36. Bb6 {[%emt 0:00:39]} Kd5 {[%emt 0:00:31]} 37. Bc7 {[%emt 0:01:15]} Rb3 {[%emt 0:00:35]} 38. Ba5 {[%emt 0:00:11]} Kc4 {[%emt 0:00:14]} 39. Ke1 {[%emt 0:00:24]} g6 {[%emt 0:00:29]} 40. Kf2 {[%emt 0:00:00]} Rxb4 {[%emt 0:00:00]} 41. Bxb4 {[%emt 0:00:54]} Kxb4 {[%emt 0:01:20]} 42. Kf3 {[%emt 0:00:07]} a5 {[%emt 0:00:09]} 43. Kf4 {[%emt 0:00:04]} a4 {[%emt 0:00:13]} 44. Kg5 {[%emt 0:00:09]} a3 {[%emt 0:00:08]} 45. Kxg6 {[%emt 0:00:08]} a2 {[%emt 0:00:04]} 46. Kxh5 {[%emt 0:00:08]} a1=Q {[%emt 0:00:09]} 47. g4 {[%emt 0:00:10]} Qg7 {[%emt 0:00:41]} 48. g5 {[%emt 0:00:08]} Kc5 {[%emt 0:00:28]} 49. Kg4 {[%emt 0:00:09]} Kd5 {[%emt 0:00:08]} 50. Kf5 {[%emt 0:00:07]} Qf7+ {[%emt 0:00:06]} 51. Kg4 {[%emt 0:00:04]} Ke4 {[%emt 0:00:10]} 52. g6 {[%emt 0:00:29]} Qf5+ {[%emt 0:00:31]} 53. Kg3 {[%emt 0:00:06]} Qf3+ {[%emt 0:00:21]} 54. Kh2 {[%emt 0:00:07]} Qg4 {[%emt 0:00:08]} 55. g7 {[%emt 0:00:09]} Kf3 {[%emt 0:00:11]} 56. g8=B {[%emt 0:00:19]} Qg2# {[%emt 0:00:46]} 0-1

[Event "EYCC Open-U14 2019"]
[Site "Bratislava"]
[Date "2019.08.04"]
[Round "3.36"]
[White "Popov, Maksim M."]
[Black "Heldenbergh, Nils"]
[Result "1-0"]
[ECO "A05"]
[WhiteElo "2152"]
[BlackElo "1942"]
[Annotator "NA"]
[PlyCount "79"]
[EventDate "2019.08.02"]
[EventType "swiss"]
[EventCountry "SVK"]
[SourceTitle "playchess.com"]
[Source "ChessBase"]
[SourceQuality "1"]
[TimeControl "40/5400+30:1800+30"]

1. Nf3 {[%emt 0:00:00]} Nf6 {[%emt 0:00:00]} 2. c4 {[%emt 0:00:00]} e6 {[%emt 0:00:00]} 3. e3 {[%emt 0:00:06]} d5 {[%emt 0:00:00]} 4. b3 {[%emt 0:00:09]} Be7 {[%emt 0:00:00]} 5. Bb2 {[%emt 0:00:14]} O-O {[%emt 0:00:00]} 6. d4 {[%emt 0:00:14]} b6 {[%emt 0:00:17]} 7. cxd5 {[%emt 0:00:52]} exd5 {[%emt 0:00:08]} 8. Bd3 {[%emt 0:00:10]} Bb7 {[%emt 0:00:03]} 9. Nbd2 {[%emt 0:01:50]} Nbd7 {[%emt 0:01:21]} 10. Rc1 {[%emt 0:00:42]} Bd6 {[%emt 0:01:15]} 11. Ne5 {[%emt 0:05:37]} Ne4 {[%emt 0:01:43]} 12. O-O {[%emt 0:01:37]} Re8 {[%emt 0:04:47]} 13. f4 {[%emt 0:22:51]} Nxd2 {[%emt 0:27:39]} 14. Qxd2 {[%emt 0:00:08]} a6 {[%emt 0:00:28]} 15. Rf3 {[%emt 0:02:05]} Nf6 {[%emt 0:06:25]} 16. Qe2 {[%emt 0:06:47]} Ne4 {[%emt 0:03:30]} 17. Rcf1 {[%emt 0:01:38]} c5 {[%emt 0:02:24]} 18. Rh3 {[%emt 0:01:20]} Qe7 {[%emt 0:09:02]} 19. f5 {[%emt 0:12:01]} Ng5 {[%emt 0:08:42]} 20. f6 {[%emt 0:04:24]} Nxh3+ {[%emt 0:00:42]} 21. gxh3 {[%emt 0:00:05]} Qc7 {[%emt 0:03:09]} 22. Bxh7+ {[%emt 0:00:13]} Kh8 {[%emt 0:08:52]} 23. fxg7+ {[%emt 0:00:11]} Kxg7 {[%emt 0:00:27]} 24. Rxf7+ {[%emt 0:00:18]} Qxf7 {[%emt 0:00:28]} 25. Nxf7 {[%emt 0:00:07]} Kxf7 {[%emt 0:00:23]} 26. dxc5 {[%emt 0:00:33]} Bxc5 {[%emt 0:01:19]} 27. Qf3+ {[%emt 0:00:11]} Ke7 {[%emt 0:03:18]} 28. Qf6+ {[%emt 0:00:09]} Kd7 {[%emt 0:00:25]} 29. Bf5+ {[%emt 0:00:12]} Kc7 {[%emt 0:00:09]} 30. Be5+ {[%emt 0:00:32]} Rxe5 {[%emt 0:00:26]} 31. Qxe5+ {[%emt 0:00:07]} Kc6 {[%emt 0:00:52]} 32. h4 {[%emt 0:05:31]} Rg8+ {[%emt 0:01:00]} 33. Kf1 {[%emt 0:01:48]} Rf8 {[%emt 0:00:03]} 34. Ke2 {[%emt 0:00:25]} a5 {[%emt 0:00:40]} 35. h5 {[%emt 0:00:27]} Bd6 {[%emt 0:00:27]} 36. Qc3+ {[%emt 0:00:34]} Bc5 {[%emt 0:00:15]} 37. Qg7 {[%emt 0:00:43]} Bd6 {[%emt 0:01:56]} 38. Qd7+ {[%emt 0:00:08]} Kc5 {[%emt 0:00:07]} 39. Qxb7 {[%emt 0:00:08]} Rxf5 {[%emt 0:00:07]} 40. Qc8+ {[%emt 0:00:00]} 1-0

[Event "EYCC Open-U14 2019"]
[Site "Bratislava"]
[Date "2019.08.04"]
[Round "3.37"]
[White "Kures, Michael"]
[Black "Hak, David"]
[Result "0-1"]
[ECO "C03"]
[WhiteElo "1898"]
[BlackElo "2012"]
[Annotator "NA"]
[PlyCount "94"]
[EventDate "2019.08.02"]
[EventType "swiss"]
[EventCountry "SVK"]
[SourceTitle "playchess.com"]
[Source "ChessBase"]
[SourceQuality "1"]
[TimeControl "40/5400+30:1800+30"]

1. e4 {[%emt 0:00:00]} e6 {[%emt 0:00:00]} 2. d4 {[%emt 0:00:43]} d5 {[%emt 0:00:00]} 3. Nd2 {[%emt 0:00:40]} a6 {[%emt 0:00:00]} 4. Ngf3 {[%emt 0:01:00]} c5 {[%emt 0:00:11]} 5. exd5 {[%emt 0:01:47]} exd5 {[%emt 0:00:08]} 6. dxc5 {[%emt 0:01:43]} Bxc5 {[%emt 0:00:35]} 7. Nb3 {[%emt 0:00:41]} Bb6 {[%emt 0:02:31]} 8. Bd3 {[%emt 0:02:26]} Nf6 {[%emt 0:06:15]} 9. O-O {[%emt 0:00:57]} O-O {[%emt 0:00:20]} 10. h3 {[%emt 0:00:40]} Ne4 {[%emt 0:15:19]} 11. c3 {[%emt 0:07:08]} Nc6 {[%emt 0:04:00]} 12. Bc2 {[%emt 0:05:00]} Be6 {[%emt 0:06:36]} 13. Nfd4 {[%emt 0:13:58]} Qh4 {[%emt 0:10:17]} 14. Be3 {[%emt 0:04:25]} Bc7 {[%emt 0:11:34]} 15. Re1 {[%emt 0:14:11]} Ne5 {[%emt 0:11:09]} 16. Nxe6 {[%emt 0:01:41]} fxe6 {[%emt 0:00:11]} 17. Bxe4 {[%emt 0:00:31]} dxe4 {[%emt 0:01:07]} 18. Re2 {[%emt 0:05:54]} Rf3 {[%emt 0:08:10]} 19. Qf1 {[%emt 0:05:41]} Raf8 {[%emt 0:04:40]} 20. Nd4 {[%emt 0:07:23]} Ng4 {[%emt 0:07:52]} 21. Nxe6 {[%emt 0:06:42]} Nxe3 {[%emt 0:02:02]} 22. Rxe3 {[%emt 0:01:05]} Rxf2 {[%emt 0:00:51]} 23. Qe1 {[%emt 0:00:34]} Bb6 {[%emt 0:05:38]} 24. Nxf8 {[%emt 0:00:28]} Qf4 {[%emt 0:00:23]} 25. Ne6 {[%emt 0:10:50]} Qxe3 {[%emt 0:00:23]} 26. Qxe3 {[%emt 0:00:17]} Bxe3 {[%emt 0:00:01]} 27. Re1 {[%emt 0:00:31]} Re2+ {[%emt 0:00:02]} 28. Kf1 {[%emt 0:00:09]} Rf2+ {[%emt 0:00:03]} 29. Kg1 {[%emt 0:00:06]} Bb6 {[%emt 0:00:42]} 30. Kh2 {[%emt 0:00:28]} e3 {[%emt 0:01:03]} 31. b3 {[%emt 0:02:28]} Rxa2 {[%emt 0:01:11]} 32. Nd4 {[%emt 0:00:24]} Bxd4 {[%emt 0:00:17]} 33. cxd4 {[%emt 0:00:16]} e2 {[%emt 0:00:31]} 34. Kg3 {[%emt 0:01:10]} Kf7 {[%emt 0:00:34]} 35. Kf2 {[%emt 0:00:14]} Ke6 {[%emt 0:01:58]} 36. Rc1 {[%emt 0:00:59]} e1=Q+ {[%emt 0:00:45]} 37. Kxe1 {[%emt 0:00:03]} Rxg2 {[%emt 0:00:10]} 38. Rc7 {[%emt 0:00:08]} b5 {[%emt 0:00:22]} 39. Ra7 {[%emt 0:00:52]} Kd5 {[%emt 0:00:34]} 40. Rxa6 {[%emt 0:00:00]} Kxd4 {[%emt 0:00:00]} 41. Rb6 {[%emt 0:00:45]} Kc5 {[%emt 0:01:19]} 42. Rb7 {[%emt 0:00:06]} Rg3 {[%emt 0:03:20]} 43. h4 {[%emt 0:00:20]} Kb4 {[%emt 0:05:05]} 44. Kd2 {[%emt 0:00:26]} Rg4 {[%emt 0:02:19]} 45. h5 {[%emt 0:00:18]} Rg5 {[%emt 0:00:37]} 46. h6 {[%emt 0:00:47]} gxh6 {[%emt 0:00:11]} 47. Rxh7 {[%emt 0:00:19]} Rh5 {[%emt 0:00:13]} 0-1

[Event "EYCC Open-U14 2019"]
[Site "Bratislava"]
[Date "2019.08.04"]
[Round "3.38"]
[White "Cappelletto, Joshuaede"]
[Black "Yeh, Timo"]
[Result "1-0"]
[ECO "C50"]
[WhiteElo "2138"]
[BlackElo "1882"]
[Annotator "NA"]
[PlyCount "133"]
[EventDate "2019.08.02"]
[EventType "swiss"]
[EventCountry "SVK"]
[SourceTitle "playchess.com"]
[Source "ChessBase"]
[SourceQuality "1"]
[TimeControl "40/5400+30:1800+30"]

1. e4 {[%emt 0:00:00]} e5 {[%emt 0:00:00]} 2. Nf3 {[%emt 0:00:00]} Nc6 {[%emt 0:00:00]} 3. Bc4 {[%emt 0:00:41]} Nf6 {[%emt 0:00:00]} 4. d3 {[%emt 0:00:17]} Bc5 {[%emt 0:00:03]} 5. c3 {[%emt 0:00:10]} d6 {[%emt 0:00:06]} 6. O-O {[%emt 0:01:13]} O-O {[%emt 0:00:07]} 7. h3 {[%emt 0:00:48]} h6 {[%emt 0:00:05]} 8. Re1 {[%emt 0:00:48]} Be6 {[%emt 0:00:19]} 9. Bb5 {[%emt 0:01:01]} Ne7 {[%emt 0:01:30]} 10. d4 {[%emt 0:04:03]} exd4 {[%emt 0:00:16]} 11. cxd4 {[%emt 0:00:27]} Bb4 {[%emt 0:00:05]} 12. Bd2 {[%emt 0:01:18]} Bxd2 {[%emt 0:00:26]} 13. Qxd2 {[%emt 0:01:20]} c6 {[%emt 0:01:33]} 14. Bd3 {[%emt 0:01:26]} b5 {[%emt 0:01:58]} 15. Nc3 {[%emt 0:05:39]} Qb6 {[%emt 0:02:02]} 16. Rac1 {[%emt 0:03:21]} Rfd8 {[%emt 0:00:25]} 17. Bb1 {[%emt 0:09:39]} a5 {[%emt 0:03:35]} 18. Qe2 {[%emt 0:06:07]} Bc4 {[%emt 0:00:55]} 19. Qc2 {[%emt 0:02:00]} Ng6 {[%emt 0:02:46]} 20. Ne2 {[%emt 0:08:30]} Rac8 {[%emt 0:15:45]} 21. Ng3 {[%emt 0:06:15]} Be6 {[%emt 0:10:49]} 22. Red1 {[%emt 0:09:33]} b4 {[%emt 0:07:03]} 23. b3 {[%emt 0:01:36]} c5 {[%emt 0:00:48]} 24. d5 {[%emt 0:14:10]} Bd7 {[%emt 0:00:18]} 25. Qb2 {[%emt 0:00:10]} Re8 {[%emt 0:00:32]} 26. Kh1 {[%emt 0:02:54]} a4 {[%emt 0:06:45]} 27. Nd2 {[%emt 0:02:29]} a3 {[%emt 0:00:22]} 28. Qc2 {[%emt 0:01:49]} Nf4 {[%emt 0:00:30]} 29. Nc4 {[%emt 0:00:43]} Qb8 {[%emt 0:00:06]} 30. Qd2 {[%emt 0:02:28]} N4h5 {[%emt 0:02:44]} 31. Nxh5 {[%emt 0:01:33]} Nxh5 {[%emt 0:00:05]} 32. Re1 {[%emt 0:00:39]} Bb5 {[%emt 0:00:30]} 33. Qd1 {[%emt 0:03:18]} Bxc4 {[%emt 0:00:40]} 34. Rxc4 {[%emt 0:03:16]} Nf6 {[%emt 0:03:16]} 35. f4 {[%emt 0:00:54]} Nd7 {[%emt 0:00:12]} 36. Rc1 {[%emt 0:01:53]} Re7 {[%emt 0:02:31]} 37. Bd3 {[%emt 0:01:15]} Rce8 {[%emt 0:00:22]} 38. Qd2 {[%emt 0:03:00]} f6 {[%emt 0:03:28]} 39. Qf2 {[%emt 0:00:27]} g5 {[%emt 0:02:56]} 40. g3 {[%emt 0:00:00]} Kg7 {[%emt 0:00:00]} 41. Rf1 {[%emt 0:04:53]} Rf8 {[%emt 0:02:13]} 42. Qf3 {[%emt 0:03:31]} Qe8 {[%emt 0:04:23]} 43. Bb1 {[%emt 0:06:54]} Qc8 {[%emt 0:01:20]} 44. Qd3 {[%emt 0:03:11]} Kg8 {[%emt 0:02:20]} 45. Kh2 {[%emt 0:00:15]} Qe8 {[%emt 0:00:12]} 46. Qf3 {[%emt 0:02:56]} Kg7 {[%emt 0:00:09]} 47. Rf2 {[%emt 0:02:21]} Qf7 {[%emt 0:00:42]} 48. Qd3 {[%emt 0:02:39]} Kg8 {[%emt 0:00:15]} 49. Qa6 {[%emt 0:00:31]} gxf4 {[%emt 0:04:02]} 50. gxf4 {[%emt 0:00:01]} f5 {[%emt 0:02:04]} 51. Qxd6 {[%emt 0:03:42]} Qf6 {[%emt 0:00:26]} 52. Qxf6 {[%emt 0:01:05]} Nxf6 {[%emt 0:00:02]} 53. d6 {[%emt 0:01:10]} Re6 {[%emt 0:08:29]} 54. e5 {[%emt 0:00:39]} Nd7 {[%emt 0:05:01]} 55. Bd3 {[%emt 0:00:22]} Nxe5 {[%emt 0:02:06]} 56. fxe5 {[%emt 0:00:27]} Rxe5 {[%emt 0:00:05]} 57. Rg1+ {[%emt 0:01:29]} Kf7 {[%emt 0:00:18]} 58. Rxf5+ {[%emt 0:00:35]} Rxf5 {[%emt 0:00:09]} 59. Bxf5 {[%emt 0:00:07]} Ke8 {[%emt 0:00:55]} 60. Be6 {[%emt 0:00:29]} c4 {[%emt 0:03:19]} 61. Rg7 {[%emt 0:01:26]} cxb3 {[%emt 0:00:52]} 62. Re7+ {[%emt 0:00:13]} Kd8 {[%emt 0:00:12]} 63. Rc7 {[%emt 0:00:13]} Rf2+ {[%emt 0:00:07]} 64. Kg3 {[%emt 0:00:27]} Rc2 {[%emt 0:00:19]} 65. Rg7 {[%emt 0:00:23]} Rc3+ {[%emt 0:00:55]} 66. Kh4 {[%emt 0:00:22]} Rc4+ 67. Bxc4 {[%emt 0:00:11]} 1-0